Workbook

Sheet 試算表利用時の注意点

Sheet 保険料の概要 (hidden)
AH3: =TODAY() -> 2025-06-06
B5: 年齢区分
B6: 収入額等
F8: 年齢区分 | P8: =DBCS(パラメーター!E11-1)&"年中の給与収入額" -> ６年中の給与収入額 | X8: =DBCS(パラメーター!E11-1)&"年中の年金収入額" -> ６年中の年金収入額 | AF8: =DBCS(パラメーター!E11-1)&"年中のその他所得額" -> ６年中のその他所得額
B9: 世帯主 | V9: 円 | AD9: 円 | AL9: 円
B11: 加入者１ | V11: 円 | AD11: 円 | AL11: 円
B13: 加入者２ | V13: 円 | AD13: 円 | AL13: 円
B15: 加入者３ | V15: 円 | AD15: 円 | AL15: 円
B17: 加入者４ | V17: 円 | AD17: 円 | AL17: 円
B19: 加入者５ | V19: 円 | AD19: 円 | AL19: 円
B22: 区分 | F22: 医療分 | O22: 支援分 | W22: 介護分
F23: = | O23: = | W23: =
B24: 所得割 | F24: =保険料の詳細!Q10 -> 0 | M24: 円 | O24: =保険料の詳細!Q28 -> 0 | U24: 円 | W24: =保険料の詳細!Q47 -> 0 | AC24: 円
F25: ＋ | O25: ＋ | W25: ＋
B26: 均等割 | F26: =保険料の詳細!Q15 -> 23400 | M26: 円 | O26: =保険料の詳細!Q33 -> 9035 | U26: 円 | W26: =保険料の詳細!Q52 -> 3639 | AC26: 円
F27: ＋ | O27: ＋ | W27: ＋
B28: 平等割 | F28: =保険料の詳細!Q18 -> 5821 | M28: 円 | O28: =保険料の詳細!Q36 -> 2250 | U28: 円 | W28: =保険料の詳細!Q54 -> 1778 | AC28: 円
F30: =パラメーター!A6&TEXT(パラメーター!B6/10000,"#,###万円") -> 賦課限度額66万円 | O30: =パラメーター!A11&TEXT(パラメーター!B11/10000,"#,###万円") -> 賦課限度額26万円 | W30: =パラメーター!A16&TEXT(パラメーター!B16/10000,"#,###万円") -> 賦課限度額17万円 | AE30: 年間保険料
B31: 合計額 | F31: =保険料の詳細!J21 -> 29221 | M31: 円 | N31: + | O31: =保険料の詳細!J39 -> 11285 | U31: 円 | V31: + | W31: =保険料の詳細!J57 -> 5417 | AC31: 円 | AD31: = | AE31: =保険料の詳細!Q60 -> 45923 | AL31: 円
B33: =IF(保険料計算!H22=0,"","均等割と平等割が") -> 均等割と平等割が | J33: =IF(保険料計算!H22=0,"",保険料計算!H23) -> 7割 | L33: =IF(保険料計算!H22=0,"","軽減されています") -> 軽減されています | AD33: 1ヶ月あたりの保険料 | AF33: =保険料の詳細!Q62 -> 3826.916667 | AL33: 円

Sheet 保険料の詳細 (hidden)
H5: ※総所得金額が43万円未満の方の基礎控除額は，総所得金額と同額となります。
D6: 所得割 | F6: 総所得金額 | G6: － | H6: ※基礎控除額(43万円） | I6: ＝ | J6: 算出所得 （千円未満切捨て） | L6: 算出所得合計 | M6: × | N6: 所得割料率
E8: 世帯主 | F8: =IF(保険料計算!C2=1,"",IF(保険料計算!D2=0,"",保険料計算!E2)) -> 0 | G8: － | H8: =IF(F8="","",IF(F8<=保険料計算!F2,F8,430000)) -> 0 | I8: ＝ | J8: =IF(F8="","",IF(F8=0,"",ROUNDDOWN(F8-H8,-3))) ->  | L8: =SUM(J8:J13) -> 0 | N8: =パラメーター!B5 -> 0.0804
E9: 加入者1 | F9: =IF(保険料計算!C3=1,"",保険料計算!E3) -> 0 | G9: － | H9: =IF(F9="","",IF(F9<=保険料計算!F2,F9,430000)) -> 0 | I9: ＝
E10: 加入者2 | F10: =IF(保険料計算!C4=1,"",保険料計算!E4) -> 0 | G10: － | H10: =IF(F10="","",IF(F10<=保険料計算!F2,F10,430000)) -> 0 | I10: ＝ | Q10: =ROUNDDOWN(L8*N8,0) -> 0 | R10: … (ア)
E11: 加入者3 | F11: =IF(保険料計算!C5=1,"",保険料計算!E5) ->  | G11: － | H11: =IF(F11="","",IF(F11<=保険料計算!F2,F11,430000)) ->  | I11: ＝
E12: 加入者4 | F12: =IF(保険料計算!C6=1,"",保険料計算!E6) ->  | G12: － | H12: =IF(F12="","",IF(F12<=保険料計算!F2,F12,430000)) ->  | I12: ＝
E13: 加入者5 | F13: =IF(保険料計算!C7=1,"",保険料計算!E7) ->  | G13: － | H13: =IF(F13="","",IF(F13<=保険料計算!F2,F13,430000)) ->  | I13: ＝
D15: 均等割 | H15: 1人につき | J15: =パラメーター!B3 -> 31200 | K15: × | L15: =保険料計算!K2 -> 3 | M15: ＝ | N15: =J15*L15 -> 93600 | Q15: =IF(AND(N16="",N17=""),N15,IF(N17="",N15-N16,IF(N16="",N15-N17,N15-N16-N17))) -> 23400 | R15: … (イ)
G16: =IF(保険料計算!H22=0,"","減額：") -> 減額： | H16: =IF(保険料計算!H22=0,"",保険料計算!H23) -> 7割 | J16: =IF(保険料計算!H22=0,"",保険料計算!J22) -> 21840 | K16: =IF(保険料計算!H22=0,"","×") -> × | L16: =IF(保険料計算!H22=0,"",保険料計算!K2) -> 3 | M16: =IF(保険料計算!J22=0,"","=") -> = | N16: =IF(保険料計算!H22=0,"",J16*L16) -> 65520
G17: =IF(保険料計算!G2=0,"","子ども軽減") -> 子ども軽減 | J17: =IF(保険料計算!G2=0,"",保険料計算!J31) -> 4680 | K17: =IF(保険料計算!G2=0,"","×") -> × | L17: =IF(保険料計算!G2=0,"",保険料計算!G2) -> 1 | M17: =IF(保険料計算!G2=0,"","=") -> = | N17: =IF(保険料計算!G2=0,"",J17*L17) -> 4680
D18: 平等割 | H18: 1世帯につき | J18: =パラメーター!B4 -> 19404 | N18: =IF(保険料計算!K2=0,"",パラメーター!B4) -> 19404 | Q18: =IF(AND(N18="",N19=""),0,IF(N19="",N18,N18-N19)) -> 5821 | R18: … (ウ)
G19: =IF(保険料計算!H22=0,"","減額：") -> 減額： | H19: =IF(保険料計算!H22=0,"",保険料計算!H23) -> 7割 | J19: =IF(保険料計算!H22=0,"",保険料計算!K22) -> 13583 | N19: =J19 -> 13583
D21: 医療分の保険料 (ア)＋(イ)＋(ウ) | G21: =パラメーター!A6&TEXT(パラメーター!B6/10000,"#,###万円")&"まで" -> 賦課限度額66万円まで | J21: =IF(Q10+Q15+Q18>パラメーター!B6,パラメーター!B6,Q10+Q15+Q18) -> 29221 | S21: … ①
H23: ※総所得金額が43万円未満の方の基礎控除額は，総所得金額と同額となります。
D24: 所得割 | F24: 総所得金額 | G24: － | H24: ※基礎控除額(43万円） | I24: ＝ | J24: 算出所得 （千円未満切捨て） | L24: 算出所得合計 | M24: × | N24: 所得割料率
E26: 世帯主 | F26: =IF(保険料計算!C2=1,"",IF(保険料計算!D2=0,"",保険料計算!E2)) -> 0 | G26: － | H26: =IF(F26="","",IF(F26<=保険料計算!$F$2,F26,430000)) -> 0 | I26: ＝ | J26: =IF(F8="","",IF(F26=0,"",ROUNDDOWN(F26-H26,-3))) ->  | L26: =SUM(J26:J31) -> 0 | N26: =パラメーター!B10 -> 0.0312
E27: 加入者1 | F27: =IF(保険料計算!C3=1,"",保険料計算!E3) -> 0 | G27: － | H27: =IF(F27="","",IF(F27<=保険料計算!$F$2,F27,430000)) -> 0 | I27: ＝
E28: 加入者2 | F28: =IF(保険料計算!C4=1,"",保険料計算!E4) -> 0 | G28: － | H28: =IF(F28="","",IF(F28<=保険料計算!$F$2,F28,430000)) -> 0 | I28: ＝ | Q28: =ROUNDDOWN(L26*N26,0) -> 0 | R28: … (ア)
E29: 加入者3 | F29: =IF(保険料計算!C5=1,"",保険料計算!E5) ->  | G29: － | H29: =IF(F29="","",IF(F29<=保険料計算!$F$2,F29,430000)) ->  | I29: ＝
E30: 加入者4 | F30: =IF(保険料計算!C6=1,"",保険料計算!E6) ->  | G30: － | H30: =IF(F30="","",IF(F30<=保険料計算!$F$2,F30,430000)) ->  | I30: ＝
E31: 加入者5 | F31: =IF(保険料計算!C7=1,"",保険料計算!E7) ->  | G31: － | H31: =IF(F31="","",IF(F31<=保険料計算!$F$2,F31,430000)) ->  | I31: ＝
D33: 均等割 | H33: 1人につき | J33: =パラメーター!B8 -> 12048 | K33: × | L33: =保険料計算!K2 -> 3 | M33: ＝ | N33: =J33*L33 -> 36144 | Q33: =IF(AND(N34="",N35=""),N33,IF(N35="",N33-N34,IF(N34="",N33-N35,N33-N34-N35))) -> 9035 | R33: … (イ)
G34: =IF(保険料計算!H22=0,"","減額：") -> 減額： | H34: =IF(保険料計算!H22=0,"",保険料計算!H23) -> 7割 | J34: =IF(保険料計算!H22=0,"",保険料計算!J25) -> 8434 | K34: =IF(保険料計算!H22=0,"","×") -> × | L34: =IF(保険料計算!H22=0,"",保険料計算!K2) -> 3 | M34: =IF(保険料計算!J22=0,"","=") -> = | N34: =IF(保険料計算!H22=0,"",J34*L34) -> 25302
G35: =IF(保険料計算!G2=0,"","子ども軽減") -> 子ども軽減 | J35: =IF(保険料計算!G2=0,"",保険料計算!J34) -> 1807 | K35: =IF(保険料計算!G2=0,"","×") -> × | L35: =IF(保険料計算!G2=0,"",保険料計算!G2) -> 1 | M35: =IF(保険料計算!G2=0,"","=") -> = | N35: =IF(保険料計算!G2=0,"",J35*L35) -> 1807
D36: 平等割 | H36: 1世帯につき | J36: =パラメーター!B9 -> 7500 | N36: =IF(保険料計算!K2=0,"",パラメーター!B9) -> 7500 | Q36: =IF(AND(N36="",N37=""),0,IF(N37="",N36,N36-N37)) -> 2250 | R36: … (ウ)
G37: =IF(保険料計算!H22=0,"","減額：") -> 減額： | H37: =IF(保険料計算!H22=0,"",保険料計算!H23) -> 7割 | J37: =IF(保険料計算!H22=0,"",保険料計算!K25) -> 5250 | N37: =J37 -> 5250
D39: 支援分の保険料 (ア)＋(イ)＋(ウ) | G39: =パラメーター!A11&TEXT(パラメーター!B11/10000,"#,###万円")&"まで" -> 賦課限度額26万円まで | J39: =IF(Q28+Q33+Q36>パラメーター!B11,パラメーター!B11,Q28+Q33+Q36) -> 11285 | S39: … ②
H42: ※総所得金額が43万円未満の方の基礎控除額は，総所得金額と同額となります。
D43: 所得割 | F43: 総所得金額 | G43: － | H43: ※基礎控除額(43万円） | I43: ＝ | J43: 算出所得 （千円未満切捨て） | L43: 算出所得合計 | M43: × | N43: 所得割料率
E45: 世帯主 | F45: =IF(保険料計算!C2=4,IF(保険料計算!C2=1,"",保険料計算!E2),"") -> 0 | G45: － | H45: =IF(F45="","",IF(F45<=保険料計算!$F$2,F45,430000)) -> 0 | I45: ＝ | J45: =IF(F45="","",IF(F45=0,"",ROUNDDOWN(F45-H45,-3))) ->  | L45: =SUM(J45:J50) -> 0 | N45: =パラメーター!B15 -> 0.03
E46: 加入者1 | F46: =IF(保険料計算!C3=4,IF(保険料計算!C3=1,"",保険料計算!E3),"") ->  | G46: － | H46: =IF(F46="","",IF(F46<=保険料計算!$F$2,F46,430000)) ->  | I46: ＝
E47: 加入者2 | F47: =IF(保険料計算!C4=4,IF(保険料計算!C4=1,"",保険料計算!E4),"") ->  | G47: － | H47: =IF(F47="","",IF(F47<=保険料計算!$F$2,F47,430000)) ->  | I47: ＝ | Q47: =ROUNDDOWN(L45*N45,0) -> 0 | R47: … (ア)
E48: 加入者3 | F48: =IF(保険料計算!C5=4,IF(保険料計算!C5=1,"",保険料計算!E5),"") ->  | G48: － | H48: =IF(F48="","",IF(F48<=保険料計算!$F$2,F48,430000)) ->  | I48: ＝
E49: 加入者4 | F49: =IF(保険料計算!C6=4,IF(保険料計算!C6=1,"",保険料計算!E6),"") ->  | G49: － | H49: =IF(F49="","",IF(F49<=保険料計算!$F$2,F49,430000)) ->  | I49: ＝
E50: 加入者5 | F50: =IF(保険料計算!C7=4,IF(保険料計算!C7=1,"",保険料計算!E7),"") ->  | G50: － | H50: =IF(F50="","",IF(F50<=保険料計算!$F$2,F50,430000)) ->  | I50: ＝
D52: 均等割 | H52: 1人につき | J52: =パラメーター!B13 -> 12132 | K52: × | L52: =保険料計算!I2 -> 1 | M52: ＝ | N52: =J52*L52 -> 12132 | Q52: =IF(N53="",N52,N52-N53) -> 3639 | R52: … (イ)
G53: =IF(保険料計算!H26=0,"","減額：") -> 減額： | H53: =IF(保険料計算!H26=0,"",保険料計算!H27) -> 7割 | J53: =IF(保険料計算!H26=0,"",保険料計算!J28) -> 8493 | K53: =IF(保険料計算!H26=0,"","×") -> × | L53: =IF(保険料計算!H26=0,"",保険料計算!I2) -> 1 | M53: =IF(保険料計算!J26=0,"","=") ->  | N53: =IF(保険料計算!H26=0,"",J53*L53) -> 8493
D54: 平等割 | H54: 1世帯につき | J54: =パラメーター!B14 -> 5928 | N54: =IF(保険料計算!I2=0,"",パラメーター!B14) -> 5928 | Q54: =IF(AND(N54="",N55=""),0,IF(N55="",N54,N54-N55)) -> 1778 | R54: … (ウ)
G55: =IF(保険料計算!H26=0,"","減額：") -> 減額： | H55: =IF(保険料計算!H26=0,"",保険料計算!H27) -> 7割 | J55: =IF(保険料計算!H26=0,"",保険料計算!K28) -> 4150 | N55: =J55 -> 4150
D57: 介護分の保険料 (ア)＋(イ)＋(ウ) | G57: =パラメーター!A16&TEXT(パラメーター!B16/10000,"#,###万円")&"まで" -> 賦課限度額17万円まで | J57: =IF(Q47+Q52+Q54>パラメーター!B16,パラメーター!B16,Q47+Q52+Q54) -> 5417 | S57: … ③
J60: 年間 国民健康保険料 【①+②+③】 | Q60: =J21+J39+J57 -> 45923
J62: 1ヵ月当たりの国民健康保険料 （年間保険料／12ヶ月） | Q62: =Q60/12 -> 3826.916667

Sheet 保険料計算 (hidden)
A1: 基礎情報 | C1: 加入区分 | D1: 擬主判定 | E1: 総所得金額 | F1: 基礎控除額 | G1: 未就学児 | H1: ６歳から３９歳まで人数 | I1: ４０歳から６４歳まで人数 | J1: ６５歳から７４歳まで人数 | K1: 合計人数
A2: 年齢区分 | B2: 世帯主 | C2: 4 | D2: =IF(C2=1,0,1) -> 1 | E2: =H10 -> 0 | F2: 430000 | G2: =COUNTIF(C2:C7,2) -> 1 | H2: =COUNTIF(C2:C7,3) -> 1 | I2: =COUNTIF(C2:C7,4) -> 1 | J2: =COUNTIF(C2:C7,5) -> 0 | K2: =G2+H2+I2+J2 -> 3 | L2: =IF(D2=0,IF(B10>550000,K2+1,K2),K2) -> 3
A3: 加入しない | B3: 加入者１ | C3: 3 | E3: 0
A4: 未就学児 | B4: 加入者２ | C4: 2 | E4: 0
A5: ６歳から３９歳まで | B5: 加入者３ | C5: 1 | E5: 0
A6: ４０歳から６４歳まで | B6: 加入者４ | C6: 1 | E6: 0
A7: ６５歳から７４歳まで | B7: 加入者５ | C7: 1 | E7: 0
C8: =SUM(加入者) -> 8
A9: 所得内訳 | B9: 給与収入額 | C9: 給与所得額 | D9: 年金収入額 | E9: 年金所得額 | F9: 年金特別控除判定 | G9: その他所得 | H9: 合計所得 | I9: 給与所得額 | J9: 年金所得額 | K9: 給与年金所得控除
A10: 世帯主 | B10: =保険料の概要!Q9 -> 0 | C10: =VLOOKUP(D58,D47:J57,7,0)-K10 -> 0 | D10: =保険料の概要!Y9 -> 0 | E10: =IF(C2=5,D67,D76) -> 0 | F10: =IF(OR(C2=1,C2=5),IF(D10<=1100000,0,IF(D10>=1250000,-150000,1100000-D10)),0) -> 0 | G10: =保険料の概要!AG9 -> 0 | H10: =C10+E10+G10 -> 0 | I10: =VLOOKUP(D58,D47:J57,7,0) -> 0 | J10: =IF(C2=5,D67,D76) -> 0 | K10: =IF(IF(I10>100000,100000,I10)+IF(J10>100000,100000,J10)-100000<0,0,IF(I10>100000,100000,I10)+IF(J10>100000,100000,J10)-100000) -> 0
A11: 加入者１ | B11: =保険料の概要!Q11 -> 0 | C11: =VLOOKUP(E58,E47:K57,7,0)-K11 -> 0 | D11: =保険料の概要!Y11 -> 0 | E11: =IF(C3=5,E67,E76) -> 0 | F11: =IF(C3=5,IF(D11<=1100000,0,IF(D11>=1250000,-150000,1100000-D11)),0) -> 0 | G11: =保険料の概要!AG11 -> 0 | H11: =IF(C3>1,C11+E11+G11,0) -> 0 | I11: =VLOOKUP(E58,E47:K57,7,0) -> 0 | J11: =IF(C3=5,E67,E76) -> 0 | K11: 0
A12: 加入者２ | B12: =保険料の概要!Q13 -> 0 | C12: =VLOOKUP(F58,F47:L57,7,0)-K12 -> 0 | D12: =保険料の概要!Y13 -> 0 | E12: =IF(C4=5,F67,F76) -> 0 | F12: 0 | G12: =保険料の概要!AG13 -> 0 | H12: =IF(C4>1,C12+E12+G12,0) -> 0 | I12: =VLOOKUP(F58,F47:L57,7,0) -> 0 | J12: =IF(C4=5,F67,F76) -> 0 | K12: 0
A13: 加入者３ | B13: =保険料の概要!Q15 -> 0 | C13: =VLOOKUP(G58,G47:M57,7,0)-K13 -> 0 | D13: =保険料の概要!Y15 -> 0 | E13: =IF(C5=5,G67,G76) -> 0 | F13: 0 | G13: =保険料の概要!AG15 -> 0 | H13: =IF(C5>1,C13+E13+G13,0) -> 0 | I13: =VLOOKUP(G58,G47:M57,7,0) -> 0 | J13: =IF(C5=5,G67,G76) -> 0 | K13: 0
A14: 加入者４ | B14: =保険料の概要!Q17 -> 0 | C14: =VLOOKUP(H58,H47:N57,7,0)-K14 -> 0 | D14: =保険料の概要!Y17 -> 0 | E14: =IF(C6=5,H67,H76) -> 0 | F14: 0 | G14: =保険料の概要!AG17 -> 0 | H14: =IF(C6>1,C14+E14+G14,0) -> 0 | I14: =VLOOKUP(H58,H47:N57,7,0) -> 0 | J14: =IF(C6=5,H67,H76) -> 0 | K14: 0
A15: 加入者５ | B15: =保険料の概要!Q19 -> 0 | C15: =VLOOKUP(I58,I47:O57,7,0)-K15 -> 0 | D15: =保険料の概要!Y19 -> 0 | E15: =IF(C7=5,I67,I76) -> 0 | F15: 0 | G15: =保険料の概要!AG19 -> 0 | H15: =IF(C7>1,C15+E15+G15,0) -> 0 | I15: =VLOOKUP(I58,I47:O57,7,0) -> 0 | J15: =IF(C7=5,I67,I76) -> 0 | K15: 0
F16: =SUM(F10:F15) -> 0
H18: 軽減判定所得
E19: 医療子ども均等割軽減額 | G19: 支援子ども均等割軽減額 | H19: =SUM(H10:H15)+F16 -> 0
D20: 7 | E20: =ROUNDUP(ROUNDDOWN(パラメーター!B3*0.3,0)/2,0) -> 4680 | F20: 7 | G20: =ROUNDUP(ROUNDDOWN(パラメーター!B8*0.3,0)/2,0) -> 1807
D21: 5 | E21: =ROUNDUP(ROUNDDOWN(パラメーター!B3*0.5,0)/2,0) -> 7800 | F21: 5 | G21: =ROUNDUP(ROUNDDOWN(パラメーター!B8*0.5,0)/2,0) -> 3012 | H21: 医・支軽減判定 | J21: 医療均等割 | K21: 医療平等割
D22: 2 | E22: =ROUNDUP(ROUNDDOWN(パラメーター!B3*0.8,0)/2,0) -> 12480 | F22: 2 | G22: =ROUNDUP(ROUNDDOWN(パラメーター!B8*0.8,0)/2,0) -> 4819 | H22: =VLOOKUP(K2,A27:B33,2,0) -> 7 | I22: 割 | J22: =VLOOKUP(H22,D26:E29,2,0) -> 21840 | K22: =VLOOKUP(H22,F26:G29,2,0) -> 13583
D23: 0 | E23: =ROUNDUP(パラメーター!B3/2,0) -> 15600 | F23: 0 | G23: =ROUNDUP(パラメーター!B8/2,0) -> 6024 | H23: =CONCATENATE(H22,I22) -> 7割
J24: 支援均等割 | K24: 支援平等割
E25: 医療均等割軽減額 | G25: 医療平等割軽減額 | H25: 介護軽減判定 | J25: =VLOOKUP(H22,D32:E35,2,0) -> 8434 | K25: =VLOOKUP(H22,F32:G35,2,0) -> 5250
A26: 人数 | B26: 軽減割合 | D26: 7 | E26: =ROUNDUP(パラメーター!B3*0.7,0) -> 21840 | F26: 7 | G26: =ROUNDUP(パラメーター!B4*0.7,0) -> 13583 | H26: =IF(I2>=1,H22,0) -> 7 | I26: 割
A27: 1 | B27: =MAX(パラメーター!C19,パラメーター!E19,パラメーター!G19) -> 7 | D27: 5 | E27: =ROUNDUP(パラメーター!B3*0.5,0) -> 15600 | F27: 5 | G27: =ROUNDUP(パラメーター!B4*0.5,0) -> 9702 | H27: =CONCATENATE(H26,I26) -> 7割 | J27: 介護均等割 | K27: 介護平等割
A28: 2 | B28: =MAX(パラメーター!C20,パラメーター!E20,パラメーター!G20) -> 7 | D28: 2 | E28: =ROUNDUP(パラメーター!B3*0.2,0) -> 6240 | F28: 2 | G28: =ROUNDUP(パラメーター!B4*0.2,0) -> 3881 | J28: =VLOOKUP(H22,D38:E41,2,0) -> 8493 | K28: =VLOOKUP(H22,F38:G41,2,0) -> 4150
A29: 3 | B29: =MAX(パラメーター!C21,パラメーター!E21,パラメーター!G21) -> 7 | D29: 0 | F29: 0 | H29: 子ども軽減判定
A30: 4 | B30: =MAX(パラメーター!C22,パラメーター!E22,パラメーター!G22) -> 7 | H30: =IF(G2>=1,H22,0) -> 7 | I30: 割 | J30: 医療子ども軽減
A31: 5 | B31: =MAX(パラメーター!C23,パラメーター!E23,パラメーター!G23) -> 7 | E31: 支援均等割軽減額 | G31: 支援平等割軽減額 | H31: =CONCATENATE(H30,I30) -> 7割 | J31: =VLOOKUP(H30,D20:E23,2,0) -> 4680
A32: 6 | B32: =MAX(パラメーター!C24,パラメーター!E24,パラメーター!G24) -> 7 | D32: 7 | E32: =ROUNDUP(パラメーター!B8*0.7,0) -> 8434 | F32: 7 | G32: =ROUNDUP(パラメーター!B9*0.7,0) -> 5250
A33: 0 | D33: 5 | E33: =ROUNDUP(パラメーター!B8*0.5,0) -> 6024 | F33: 5 | G33: =ROUNDUP(パラメーター!B9*0.5,0) -> 3750 | J33: 支援子ども軽減
D34: 2 | E34: =ROUNDUP(パラメーター!B8*0.2,0) -> 2410 | F34: 2 | G34: =ROUNDUP(パラメーター!B9*0.2,0) -> 1500 | J34: =VLOOKUP(H30,F20:G23,2,0) -> 1807
D35: 0 | F35: 0
E37: 介護均等割軽減額 | G37: 介護平等割軽減額
D38: 7 | E38: =ROUNDUP(パラメーター!B13*0.7,0) -> 8493 | F38: 7 | G38: =ROUNDUP(パラメーター!B14*0.7,0) -> 4150
D39: 5 | E39: =ROUNDUP(パラメーター!B13*0.5,0) -> 6066 | F39: 5 | G39: =ROUNDUP(パラメーター!B14*0.5,0) -> 2964
D40: 2 | E40: =ROUNDUP(パラメーター!B13*0.2,0) -> 2427 | F40: 2 | G40: =ROUNDUP(パラメーター!B14*0.2,0) -> 1186
D41: 0 | F41: 0
J45: 給与所得額
A46: 給与所得計算 | B46: 給与収入 | D46: 世帯主 | E46: 加入者１ | F46: 加入者２ | G46: 加入者３ | H46: 加入者４ | I46: 加入者５ | J46: 世帯主 | K46: 加入者１ | L46: 加入者２ | M46: 加入者３ | N46: 加入者４ | O46: 加入者５
A47: 給与収入 | B47: 0 | C47: 550999 | D47: =IF($B10<=$C47,0,"") -> 0 | E47: =IF($B$11<=$C47,0,"") -> 0 | F47: =IF($B$12<=$C47,0,"") -> 0 | G47: =IF($B$13<=$C47,0,"") -> 0 | H47: =IF($B$14<=$C47,0,"") -> 0 | I47: =IF($B$15<=$C47,0,"") -> 0 | J47: 0 | K47: 0 | L47: 0 | M47: 0 | N47: 0 | O47: 0
B48: 551000 | C48: 1618999 | D48: =IF(B10<=C48,1,"") -> 1 | E48: =IF($B$11<=$C48,1,"") -> 1 | F48: =IF($B$12<=$C48,1,"") -> 1 | G48: =IF($B$13<=$C48,1,"") -> 1 | H48: =IF($B$14<=$C48,1,"") -> 1 | I48: =IF($B$15<=$C48,1,"") -> 1 | J48: =B10-550000 -> -550000 | K48: =B11-550000 -> -550000 | L48: =B12-550000 -> -550000 | M48: =B13-550000 -> -550000 | N48: =B14-550000 -> -550000 | O48: =B15-550000 -> -550000
B49: 1619000 | C49: 1619999 | D49: =IF(B10<=C49,2,"") -> 2 | E49: =IF($B$11<=$C49,2,"") -> 2 | F49: =IF($B$12<=$C49,2,"") -> 2 | G49: =IF($B$13<=$C49,2,"") -> 2 | H49: =IF($B$14<=$C49,2,"") -> 2 | I49: =IF($B$15<=$C49,2,"") -> 2 | J49: 1069000 | K49: 1069000 | L49: 1069000 | M49: 1069000 | N49: 1069000 | O49: 1069000
B50: 1620000 | C50: 1621999 | D50: =IF(B10<=C50,3,"") -> 3 | E50: =IF($B$11<=$C50,3,"") -> 3 | F50: =IF($B$12<=$C50,3,"") -> 3 | G50: =IF($B$13<=$C50,3,"") -> 3 | H50: =IF($B$14<=$C50,3,"") -> 3 | I50: =IF($B$15<=$C50,3,"") -> 3 | J50: 1070000 | K50: 1070000 | L50: 1070000 | M50: 1070000 | N50: 1070000 | O50: 1070000
B51: 1622000 | C51: 1623999 | D51: =IF(B10<C51,4,"") -> 4 | E51: =IF($B$11<=$C51,4,"") -> 4 | F51: =IF($B$12<=$C51,4,"") -> 4 | G51: =IF($B$13<=$C51,4,"") -> 4 | H51: =IF($B$14<=$C51,4,"") -> 4 | I51: =IF($B$15<=$C51,4,"") -> 4 | J51: 1072000 | K51: 1072000 | L51: 1072000 | M51: 1072000 | N51: 1072000 | O51: 1072000
B52: 1624000 | C52: 1627999 | D52: =IF(B10<=C52,5,"") -> 5 | E52: =IF($B$11<=$C52,5,"") -> 5 | F52: =IF($B$12<=$C52,5,"") -> 5 | G52: =IF($B$13<=$C52,5,"") -> 5 | H52: =IF($B$14<=$C52,5,"") -> 5 | I52: =IF($B$15<=$C52,5,"") -> 5 | J52: 1074000 | K52: 1074000 | L52: 1074000 | M52: 1074000 | N52: 1074000 | O52: 1074000
B53: 1628000 | C53: 1799999 | D53: =IF(B10<=C53,6,"") -> 6 | E53: =IF($B$11<=$C53,6,"") -> 6 | F53: =IF($B$12<=$C53,6,"") -> 6 | G53: =IF($B$13<=$C53,6,"") -> 6 | H53: =IF($B$14<=$C53,6,"") -> 6 | I53: =IF($B$15<=$C53,6,"") -> 6 | J53: =ROUNDDOWN(B10/4,-3)*2.4+100000 -> 100000 | K53: =ROUNDDOWN(B11/4,-3)*2.4+100000 -> 100000 | L53: =ROUNDDOWN(B12/4,-3)*2.4+100000 -> 100000 | M53: =ROUNDDOWN(B13/4,-3)*2.4+100000 -> 100000 | N53: =ROUNDDOWN(B14/4,-3)*2.4+100000 -> 100000 | O53: =ROUNDDOWN(B15/4,-3)*2.4+100000 -> 100000
B54: 1800000 | C54: 3599999 | D54: =IF(B10<=C54,7,"") -> 7 | E54: =IF($B$11<=$C54,7,"") -> 7 | F54: =IF($B$12<=$C54,7,"") -> 7 | G54: =IF($B$13<=$C54,7,"") -> 7 | H54: =IF($B$14<=$C54,7,"") -> 7 | I54: =IF($B$15<=$C54,7,"") -> 7 | J54: =ROUNDDOWN(B10/4,-3)*2.8-80000 -> -80000 | K54: =ROUNDDOWN(B11/4,-3)*2.8-80000 -> -80000 | L54: =ROUNDDOWN(B12/4,-3)*2.8-80000 -> -80000 | M54: =ROUNDDOWN(B13/4,-3)*2.8-80000 -> -80000 | N54: =ROUNDDOWN(B14/4,-3)*2.8-80000 -> -80000 | O54: =ROUNDDOWN(B15/4,-3)*2.8-80000 -> -80000
B55: 3600000 | C55: 6599999 | D55: =IF(B10<=C55,8,"") -> 8 | E55: =IF($B$11<=$C55,8,"") -> 8 | F55: =IF($B$12<=$C55,8,"") -> 8 | G55: =IF($B$13<=$C55,8,"") -> 8 | H55: =IF($B$14<=$C55,8,"") -> 8 | I55: =IF($B$15<=$C55,8,"") -> 8 | J55: =ROUNDDOWN(B10/4,-3)*3.2-440000 -> -440000 | K55: =ROUNDDOWN(B11/4,-3)*3.2-440000 -> -440000 | L55: =ROUNDDOWN(B12/4,-3)*3.2-440000 -> -440000 | M55: =ROUNDDOWN(B13/4,-3)*3.2-440000 -> -440000 | N55: =ROUNDDOWN(B14/4,-3)*3.2-440000 -> -440000 | O55: =ROUNDDOWN(B15/4,-3)*3.2-440000 -> -440000
B56: 6600000 | C56: 8499999 | D56: =IF(B10<=C56,9,"") -> 9 | E56: =IF($B$11<=$C56,9,"") -> 9 | F56: =IF($B$12<=$C56,9,"") -> 9 | G56: =IF($B$13<=$C56,9,"") -> 9 | H56: =IF($B$14<=$C56,9,"") -> 9 | I56: =IF($B$15<=$C56,9,"") -> 9 | J56: =B10*0.9-1100000 -> -1100000 | K56: =B11*0.9-1100000 -> -1100000 | L56: =B12*0.9-1100000 -> -1100000 | M56: =B13*0.9-1100000 -> -1100000 | N56: =B14*0.9-1100000 -> -1100000 | O56: =B15*0.9-1100000 -> -1100000
B57: 8500000 | D57: =IF(B10>=B57,10,"") ->  | E57: =IF(B11>=B57,10,"") ->  | F57: =IF(B12>=B57,10,"") ->  | G57: =IF(B13>=B57,10,"") ->  | H57: =IF(B14>=B57,10,"") ->  | I57: =IF(B15>=B57,10,"") ->  | J57: =B10-1950000 -> -1950000 | K57: =B11-1950000 -> -1950000 | L57: =B12-1950000 -> -1950000 | M57: =B13-1950000 -> -1950000 | N57: =B14-1950000 -> -1950000 | O57: =B15-1950000 -> -1950000
D58: =MIN(D47:D57) -> 0 | E58: 0 | F58: 0 | G58: 0 | H58: 0 | I58: 0
A60: 年金収入 | B60: ６５歳以上 | D60: 世帯主 | E60: 加入者１ | F60: 加入者２ | G60: 加入者３ | H60: 加入者４ | I60: 加入者５ | J60: 世帯主 | K60: 加入者１ | L60: 加入者２ | M60: 加入者３ | N60: 加入者４ | O60: 加入者５
B61: 0 | C61: 1100000 | D61: =IF($D$10<=$C61,0,"") -> 0 | E61: =IF($D$11<=$C61,0,"") -> 0 | F61: =IF($D$12<=$C61,0,"") -> 0 | G61: =IF($D$13<=$C61,0,"") -> 0 | H61: =IF($D$14<=$C61,0,"") -> 0 | I61: =IF($D$15<=$C61,0,"") -> 0 | J61: 0 | K61: 0 | L61: 0 | M61: 0 | N61: 0 | O61: 0
B62: 1100001 | C62: 3299999 | D62: =IF($D$10<=C62,1,"") -> 1 | E62: =IF($D$11<=$C62,1,"") -> 1 | F62: =IF($D$12<=$C62,1,"") -> 1 | G62: =IF($D$13<=$C62,1,"") -> 1 | H62: =IF($D$14<=$C62,1,"") -> 1 | I62: =IF($D$15<=$C62,1,"") -> 1 | J62: =D10-1100000 -> -1100000 | K62: =D11-1100000 -> -1100000 | L62: =D12-1100000 -> -1100000 | M62: =D13-1100000 -> -1100000 | N62: =D14-1100000 -> -1100000 | O62: =D15-1100000 -> -1100000
B63: 3300000 | C63: 4099999 | D63: =IF($D$10<=C63,2,"") -> 2 | E63: =IF($D$11<=$C63,2,"") -> 2 | F63: =IF($D$12<=$C63,2,"") -> 2 | G63: =IF($D$13<=$C63,2,"") -> 2 | H63: =IF($D$14<=$C63,2,"") -> 2 | I63: =IF($D$15<=$C63,2,"") -> 2 | J63: =D10*0.75-275000 -> -275000 | K63: =D11*0.75-275000 -> -275000 | L63: =D12*0.75-275000 -> -275000 | M63: =D13*0.75-275000 -> -275000 | N63: =D14*0.75-275000 -> -275000 | O63: =D15*0.75-275000 -> -275000
B64: 4100000 | C64: 7699999 | D64: =IF($D$10<=C64,3,"") -> 3 | E64: =IF($D$11<=$C64,3,"") -> 3 | F64: =IF($D$12<=$C64,3,"") -> 3 | G64: =IF($D$13<=$C64,3,"") -> 3 | H64: =IF($D$14<=$C64,3,"") -> 3 | I64: =IF($D$15<=$C64,3,"") -> 3 | J64: =D10*0.85-685000 -> -685000 | K64: =D11*0.85-685000 -> -685000 | L64: =D12*0.85-685000 -> -685000 | M64: =D13*0.85-685000 -> -685000 | N64: =D14*0.85-685000 -> -685000 | O64: =D15*0.85-685000 -> -685000
B65: 7700000 | C65: 9999999 | D65: =IF($D$10>=B65,4,"") ->  | E65: =IF(D11>=$B$65,4,"") ->  | F65: =IF(D12>=$B$65,4,"") ->  | G65: =IF(D13>=$B$65,4,"") ->  | H65: =IF(D14>=$B$65,4,"") ->  | I65: =IF(D15>=$B$65,4,"") ->  | J65: =D10*0.95-1455000 -> -1455000 | K65: =D11*0.95-1455000 -> -1455000 | L65: =D12*0.95-1455000 -> -1455000 | M65: =D13*0.95-1455000 -> -1455000 | N65: =D14*0.95-1455000 -> -1455000 | O65: =D15*0.95-1455000 -> -1455000
D66: =MIN(D61:D65) -> 0 | E66: 0 | F66: 0 | G66: 0 | H66: 0 | I66: 0
D67: =VLOOKUP(D66,D61:J65,7,0) -> 0 | E67: 0 | F67: 0 | G67: 0 | H67: 0 | I67: 0
B69: ６４歳未満 | D69: 世帯主 | E69: 加入者１ | F69: 加入者２ | G69: 加入者３ | H69: 加入者４ | I69: 加入者５ | J69: 世帯主 | K69: 加入者１ | L69: 加入者２ | M69: 加入者３ | N69: 加入者４ | O69: 加入者５
B70: 0 | C70: 600000 | D70: =IF($D$10<=$C70,0,"") -> 0 | E70: =IF($D$11<=$C70,0,"") -> 0 | F70: =IF($D$12<=$C70,0,"") -> 0 | G70: =IF($D$13<=$C70,0,"") -> 0 | H70: =IF($D$14<=$C70,0,"") -> 0 | I70: =IF($D$15<=$C70,0,"") -> 0 | J70: 0 | K70: 0 | L70: 0 | M70: 0 | N70: 0 | O70: 0
B71: 600001 | C71: 1299999 | D71: =IF($D$10<=C71,1,"") -> 1 | E71: =IF($D$11<=$C71,1,"") -> 1 | F71: =IF($D$12<=$C71,1,"") -> 1 | G71: =IF($D$13<=$C71,1,"") -> 1 | H71: =IF($D$14<=$C71,1,"") -> 1 | I71: =IF($D$15<=$C71,1,"") -> 1 | J71: =D10-600000 -> -600000 | K71: =D11-600000 -> -600000 | L71: =D12-600000 -> -600000 | M71: =D13-600000 -> -600000 | N71: =D14-600000 -> -600000 | O71: =D15-600000 -> -600000
B72: 1300000 | C72: 4099999 | D72: =IF($D$10<=C72,2,"") -> 2 | E72: =IF($D$11<=$C72,2,"") -> 2 | F72: =IF($D$12<=$C72,2,"") -> 2 | G72: =IF($D$13<=$C72,2,"") -> 2 | H72: =IF($D$14<=$C72,2,"") -> 2 | I72: =IF($D$15<=$C72,2,"") -> 2 | J72: =D10*0.75-275000 -> -275000 | K72: =D11*0.75-275000 -> -275000 | L72: =D12*0.75-275000 -> -275000 | M72: =D13*0.75-275000 -> -275000 | N72: =D14*0.75-275000 -> -275000 | O72: =D15*0.75-275000 -> -275000
B73: 4100000 | C73: 7699999 | D73: =IF($D$10<=C73,3,"") -> 3 | E73: =IF($D$11<=$C73,3,"") -> 3 | F73: =IF($D$12<=$C73,3,"") -> 3 | G73: =IF($D$13<=$C73,3,"") -> 3 | H73: =IF($D$14<=$C73,3,"") -> 3 | I73: =IF($D$15<=$C73,3,"") -> 3 | J73: =D10*0.85-685000 -> -685000 | K73: =D11*0.85-685000 -> -685000 | L73: =D12*0.85-685000 -> -685000 | M73: =D13*0.85-685000 -> -685000 | N73: =D14*0.85-685000 -> -685000 | O73: =D15*0.85-685000 -> -685000
B74: 7700000 | C74: 9999999 | D74: =IF($D$10>=B74,4,"") ->  | E74: =IF(D11>=$B$65,4,"") ->  | F74: =IF(D12>=$B$65,4,"") ->  | G74: =IF(D13>=$B$65,4,"") ->  | H74: =IF(D14>=$B$65,4,"") ->  | I74: =IF(D15>=$B$65,4,"") ->  | J74: =D10*0.95-1455000 -> -1455000 | K74: =D11*0.95-1455000 -> -1455000 | L74: =D12*0.95-1455000 -> -1455000 | M74: =D13*0.95-1455000 -> -1455000 | N74: =D14*0.95-1455000 -> -1455000 | O74: =D15*0.95-1455000 -> -1455000
D75: =MIN(D70:D74) -> 0 | E75: 0 | F75: 0 | G75: 0 | H75: 0 | I75: 0
D76: =VLOOKUP(D75,D70:J74,7,0) -> 0 | E76: 0 | F76: 0 | G76: 0 | H76: 0 | I76: 0

Sheet パラメーター (hidden)
A1: 料率等パラメーター
A2: 医療分 | L2: 給与 所得者数 | M2: 一般収入 | N2: 年金収入 65歳未満 | O2: 年金収入 65歳以上 | P2: 合計 | Q2: 計算値 | R2: 控除額
A3: 均等割 | B3: 31200 | R3: 100000
A4: 平等割 | B4: 19404 | L4: 1 | M4: =IF(保険料計算!B10>550000,1,0) -> 0 | N4: =IF(保険料計算!C2=3,IF(保険料計算!D10>600000,1,0),0) -> 0 | O4: =IF(保険料計算!C2=4,IF(保険料計算!D10>1250000,1,0),0) -> 0 | P4: =SUM(M4:O4) -> 0 | Q4: =MAX(P4-1,) -> 0
A5: 所得割 | B5: 0.0804 | L5: 2 | M5: =IF(保険料計算!B11>550000,M4+1,M4) -> 0 | N5: =IF(保険料計算!C3=3,IF(保険料計算!D11>600000,N4+1,N4),N4) -> 0 | O5: =IF(保険料計算!C3=4,IF(保険料計算!D11>1250000,O4+1,O4),O4) -> 0 | P5: =SUM(M5:O5) -> 0 | Q5: =MAX(P5-1,) -> 0
A6: 賦課限度額 | B6: 660000 | L6: 3 | M6: =IF(保険料計算!B12>550000,M5+1,M5) -> 0 | N6: =IF(保険料計算!C4=3,IF(保険料計算!D12>600000,N5+1,N5),N5) -> 0 | O6: =IF(保険料計算!C4=4,IF(保険料計算!D12>1250000,O5+1,O5),O5) -> 0 | P6: 0 | Q6: 0
A7: 支援分 | L7: 4 | M7: =IF(保険料計算!B13>550000,M6+1,M6) -> 0 | N7: =IF(保険料計算!C5=3,IF(保険料計算!D13>600000,N6+1,N6),N6) -> 0 | O7: =IF(保険料計算!C5=4,IF(保険料計算!D13>1250000,O6+1,O6),O6) -> 0 | P7: 0 | Q7: 0
A8: 均等割 | B8: 12048 | L8: 5 | M8: =IF(保険料計算!B14>550000,M7+1,M7) -> 0 | N8: =IF(保険料計算!C6=3,IF(保険料計算!D14>600000,N7+1,N7),N7) -> 0 | O8: =IF(保険料計算!C6=4,IF(保険料計算!D14>1250000,O7+1,O7),O7) -> 0 | P8: 0 | Q8: 0
A9: 平等割 | B9: 7500 | L9: 6 | M9: =IF(保険料計算!B15>550000,M8+1,M8) -> 0 | N9: =IF(保険料計算!C7=3,IF(保険料計算!D15>600000,N8+1,N8),N8) -> 0 | O9: =IF(保険料計算!C7=4,IF(保険料計算!D15>1250000,O8+1,O8),O8) -> 0 | P9: 0 | Q9: 0
A10: 所得割 | B10: 0.0312
A11: 賦課限度額 | B11: 260000 | D11: 年度 | E11: 7
A12: 介護分
A13: 均等割 | B13: 12132
A14: 平等割 | B14: 5928
A15: 所得割 | B15: 0.03
A16: 賦課限度額 | B16: 170000
A18: 軽減判定パラメーター | B18: ７割 | C18: 430000 | D18: ５割 | E18: 305000 | F18: ２割 | G18: 560000
A19: 1 | B19: =$C$18 -> 430000 | C19: =IF(B19>=保険料計算!$H$19,7,"") -> 7 | D19: =430000+A19*$E$18 -> 735000 | E19: =IF(D19>=保険料計算!$H$19,5,"") -> 5 | F19: =430000+A19*$G$18 -> 990000 | G19: =IF(F19>=保険料計算!$H$19,2,"") -> 2
A20: 2 | B20: =$C$18+$R$3*Q5 -> 430000 | C20: =IF(B20>=保険料計算!$H$19,7,"") -> 7 | D20: =430000+A20*$E$18+$R$3*Q5 -> 1040000 | E20: =IF(D20>=保険料計算!$H$19,5,"") -> 5 | F20: =430000+A20*$G$18+$R$3*Q5 -> 1550000 | G20: =IF(F20>=保険料計算!$H$19,2,"") -> 2
A21: 3 | B21: =$C$18+$R$3*Q6 -> 430000 | C21: =IF(B21>=保険料計算!$H$19,7,"") -> 7 | D21: =430000+A21*$E$18+$R$3*Q6 -> 1345000 | E21: =IF(D21>=保険料計算!$H$19,5,"") -> 5 | F21: =430000+A21*$G$18+$R$3*Q6 -> 2110000 | G21: =IF(F21>=保険料計算!$H$19,2,"") -> 2
A22: 4 | B22: =$C$18+$R$3*Q7 -> 430000 | C22: =IF(B22>=保険料計算!$H$19,7,"") -> 7 | D22: =430000+A22*$E$18+$R$3*Q7 -> 1650000 | E22: =IF(D22>=保険料計算!$H$19,5,"") -> 5 | F22: =430000+A22*$G$18+$R$3*Q7 -> 2670000 | G22: =IF(F22>=保険料計算!$H$19,2,"") -> 2
A23: 5 | B23: =$C$18+$R$3*Q8 -> 430000 | C23: =IF(B23>=保険料計算!$H$19,7,"") -> 7 | D23: =430000+A23*$E$18+$R$3*Q8 -> 1955000 | E23: =IF(D23>=保険料計算!$H$19,5,"") -> 5 | F23: =430000+A23*$G$18+$R$3*Q8 -> 3230000 | G23: =IF(F23>=保険料計算!$H$19,2,"") -> 2
A24: 6 | B24: =$C$18+$R$3*Q9 -> 430000 | C24: =IF(B24>=保険料計算!$H$19,7,"") -> 7 | D24: =430000+A24*$E$18+$R$3*Q9 -> 2260000 | E24: =IF(D24>=保険料計算!$H$19,5,"") -> 5 | F24: =430000+A24*$G$18+$R$3*Q9 -> 3790000 | G24: =IF(F24>=保険料計算!$H$19,2,"") -> 2
A27: ="令和"&DBCS(E11)&"年度尼崎市国民健康保険料試算表の利用について" -> 令和７年度尼崎市国民健康保険料試算表の利用について
A28: ="令和"&DBCS(E11)&"年度尼崎市国民健康保険料試算表の利用につきまして、下記の注意点をよくお読みいただき、ご利用をお願いいたします。" -> 令和７年度尼崎市国民健康保険料試算表の利用につきまして、下記の注意点をよくお読みいただき、ご利用をお願いいたします。
A29: ="令和"&DBCS(E11)&"年度尼崎市国民健康保険料の試算表" -> 令和７年度尼崎市国民健康保険料の試算表
A30: ="令和"&DBCS(E11)&"年度尼崎市国民健康保険料 計算式詳細" -> 令和７年度尼崎市国民健康保険料 計算式詳細
A31: ="この試算表では、令和"&DBCS(E11)&"年度のおおよその年間保険料と1ヶ月あたりの月額保険料の計算ができます。" -> この試算表では、令和７年度のおおよその年間保険料と1ヶ月あたりの月額保険料の計算ができます。
A32: ="年金収入があり、令和"&DBCS(E11)&"年１月２日以降に６５歳になられた場合" -> 年金収入があり、令和７年１月２日以降に６５歳になられた場合
A33: ="保険料の料率は毎年改定されます。令和６年度の試算に使用される場合は、令和５年度の料率を使用した場合の参考の保険料額としてご使用ください。（"&DBCS(E11-1)&"年度以前の保険料額については、お問い合わせください。）" -> 保険料の料率は毎年改定されます。令和６年度の試算に使用される場合は、令和５年度の料率を使用した場合の参考の保険料額としてご使用ください。（６年度以前の保険料額については、お問い合わせください。）
